bitfinex-derivatives/quotes_SOLF0:USTF0_20251211
["timestamp","ask_amount","ask_price","bid_price","bid_amount"]
[1765478933580,0.0554308,134.79,134.77,3.237622]
[1765478933979,0.0554308,134.79,134.78,1.72009442]
[1765478934375,1.5354308,134.79,134.77,0.047622]
[1765478934582,7.29394404,134.77,134.69,3.19]
[1765478934783,7.29394404,134.77,134.75,1.72320417]
[1765478935686,0.0565397,134.77,134.75,1.77896924]
[1765478935983,7.29394404,134.76,134.75,0.05576507]
[1765478936282,7.29394404,134.76,134.66,3.19]
[1765478938381,0.04695692,134.71,134.7,3.19]
[1765478938580,63.08,134.74,134.7,4.67]
[1765478938781,63.08,134.74,134.71,3.19]
[1765478939584,63.13214254,134.74,134.71,3.24547686]
[1765478939889,7.29394404,134.82,134.71,4.72547686]
[1765478940089,63.1,134.81,134.77,1.73429096]
[1765478940380,63.1,134.81,134.78,3.19]
[1765478940583,63.1,134.81,134.74,3.19]
[1765478940775,0.04998405,134.79,134.78,1.73611934]
[1765478941083,0.04998405,134.79,134.76,0.05222101]
[1765478941290,0.04998405,134.79,134.78,4.92677791]
[1765478941483,0.04998405,134.79,134.78,3.19]
[1765478941883,63.1,134.83,134.78,3.19]
[1765478942082,63.1,134.83,134.82,1.73731369]
[1765478942287,7.29394404,134.88,134.82,3.19]
[1765478942489,70.39394404,134.88,134.86,1.73903692]
[1765478942690,77.06634404,134.88,134.86,1.73903692]
[1765478942886,77.12146932,134.88,134.86,0.05103537]
[1765478943189,63.15512528,134.88,134.87,1.73921973]
[1765478943578,63.15512528,134.88,134.86,0.05103537]
[1765478944583,63.15512528,134.88,134.87,1.74640106]
[1765478944789,0.05512528,134.88,134.87,3.19]
[1765478944984,0.05512528,134.88,134.86,0.05103537]
[1765478945989,103.829,134.83,134.76,3.19]
[1765478946192,70.37394404,134.83,134.76,3.19]
[1765478946390,6.6758,134.81,134.76,3.19]
[1765478946689,109.65373449,134.82,134.76,3.19]
[1765478946992,0.04876225,134.8,134.79,1.75751887]
[1765478947194,6.72506225,134.8,134.79,1.75751887]
[1765478947494,0.04876225,134.8,134.79,1.75976702]
[1765478947695,0.04876225,134.8,134.78,0.05576722]
[1765478947890,0.04876225,134.8,134.79,1.75986295]
[1765478948283,0.04876225,134.8,134.79,3.19]
[1765478949090,0.04876225,134.8,134.78,0.05576722]
[1765478949294,0.04876225,134.8,134.79,1.76323301]
[1765478949491,5.84865347,134.8,134.79,1.76323301]
[1765478949896,5.84832027,134.8,134.79,1.76323301]
[1765478950094,0.04876225,134.8,134.78,0.05576722]
[1765478950792,0.04876225,134.8,134.78,3.24576722]
[1765478951691,5.22136446,134.87,134.78,3.24576722]
[1765478951999,63.08,134.87,134.86,1.7650301]
[1765478952187,13.49342432,134.92,134.86,3.19]
[1765478952389,63.08,134.91,134.89,1.76417473]
[1765478952589,63.08,134.91,134.9,1.76417473]
[1765478952784,63.08,134.91,134.89,3.24375511]
[1765478952991,63.12691436,134.91,134.89,3.23733585]
[1765478953198,0.04691436,134.91,134.89,3.23733585]
[1765478955291,0.04691436,134.91,134.89,3.37733585]
[1765478957594,0.04691436,134.91,134.9,1.7625546]
[1765478957798,0.04691436,134.91,134.9,1.76310573]
[1765478958384,0.04691436,134.91,134.89,0.04733585]
[1765478959188,63.06,134.9,134.89,0.04733585]
[1765478959385,166.8333,134.9,134.81,3.18]
[1765478959584,166.8333,134.9,134.86,1.76193536]
[1765478959995,6.6723,134.88,134.86,1.76193536]
[1765478960302,6.72282496,134.88,134.86,1.81682372]
[1765478960500,6.72282496,134.88,134.86,0.05488836]
[1765478960798,6.72282496,134.88,134.86,1.81662637]
[1765478961001,6.72282496,134.88,134.87,1.76173801]
[1765478961197,6.72282496,134.88,134.86,0.05488836]
[1765478961497,0.05052496,134.88,134.87,1.76168689]
[1765478961796,0.05052496,134.88,134.86,0.05488836]
[1765478961999,0.05052496,134.88,134.87,1.76163655]
[1765478962297,0.05052496,134.88,134.86,0.01013645]
[1765478962502,6.6746,134.83,134.78,3.18]
[1765478962704,69.7346,134.83,134.78,3.18]
[1765478963198,63.06,134.83,134.79,3.18]
[1765478963396,0.05658021,134.82,134.8,0.05311735]
[1765478963697,60.47190699,134.83,134.81,3.18]
[1765478963887,63.06,134.87,134.81,3.18]
[1765478964086,63.06,134.87,134.86,1.76408008]
[1765478964601,63.06,134.87,134.85,3.23693628]
[1765478964798,63.06,134.87,134.82,3.18]
[1765478965190,0.05643425,134.86,134.83,3.23587628]
[1765478966987,0.05643425,134.86,134.85,3.18]
[1765478967189,63.06,134.91,134.85,3.18]
[1765478967391,69.7305,134.91,134.9,1.358e-05]
[1765478967590,103.8203,134.84,134.74,3.18]
[1765478967790,63.06,134.83,134.74,3.18]
[1765478967984,69.7349,134.83,134.75,3.18]
[1765478968189,69.7349,134.83,134.78,0.05214091]
[1765478968386,0.0559807,134.8,134.79,3.18]
[1765478969093,63.06,134.83,134.79,3.18]
[1765478969496,115.26077907,134.89,134.79,3.18]
[1765478969693,63.06,134.85,134.79,3.18]
[1765478970095,63.06,134.85,134.81,0.05509859]
[1765478970291,0.05603449,134.83,134.82,3.18]
[1765478971299,11.47797907,134.89,134.82,3.18]
[1765478971602,63.06,134.9,134.88,1.76562402]
[1765478972004,63.06,134.9,134.87,1.76562402]
[1765478972202,63.06,134.9,134.87,1.76585587]
[1765478972498,63.10760759,134.9,134.87,1.81529376]
[1765478972698,63.10760759,134.9,134.87,0.04943789]
[1765478972896,11.47797907,134.88,134.79,3.18]
[1765478973291,33.62797907,134.88,134.79,3.18]
[1765478973896,0.05684796,134.85,134.83,1.76817723]
[1765478974098,63.11684796,134.85,134.83,1.76817723]
[1765478974303,74.59482703,134.85,134.82,0.04705792]
[1765478974603,202.03552703,134.85,134.72,3.18]
[1765478974805,11.47797907,134.81,134.79,1.77095529]
[1765478974994,63.06,134.8,134.72,3.18]
[1765478975193,63.06,134.8,134.77,1.77231639]
[1765478975395,63.06,134.8,134.78,1.77231639]
[1765478975596,63.10858287,134.8,134.78,1.77231639]
[1765478976303,0.04858287,134.8,134.78,1.77231639]
[1765478976504,63.06,134.79,134.78,1.77231639]
[1765478976813,63.06,134.79,134.72,3.18]
[1765478977002,11.47797907,134.78,134.72,3.18]
[1765478977903,11.47797907,134.78,134.76,1.77445396]
[1765478978105,11.52982524,134.78,134.76,1.77445396]
[1765478980408,11.52982524,134.78,134.74,0.05049905]
[1765478980704,11.52982524,134.78,134.75,1.77530647]
[1765478981110,0.05184617,134.78,134.75,1.77530647]
[1765478981306,0.05184617,134.78,134.74,0.05049905]
[1765478981307,0.05184617,134.78,134.76,3.18]
[1765478982600,63.08,134.81,134.76,3.18]
[1765478982799,63.08,134.81,134.8,1.77393234]
[1765478983010,63.08,134.81,134.79,1.77393234]
[1765478983513,63.13248215,134.81,134.79,1.82485825]
[1765478983703,0.05248215,134.81,134.79,0.05092591]
[1765478983907,0.05248215,134.81,134.8,1.77537684]
[1765478984808,0.05248215,134.81,134.8,3.18]
[1765478985717,11.47797907,134.86,134.8,3.18]
[1765478985911,11.47797907,134.86,134.84,1.77510792]
[1765478986112,11.47797907,134.86,134.8,3.18]
[1765478986409,11.47797907,134.86,134.84,1.7752367]
[1765478986613,33.62797907,134.86,134.83,1.7752367]
[1765478986821,33.67691975,134.86,134.81,1.77645445]
[1765478987011,11.47797907,134.8,134.71,3.18]
[1765478987209,74.55797907,134.8,134.72,3.18]
[1765478987811,0.05582742,134.77,134.76,3.18]
[1765478988511,63.08,134.8,134.76,3.18]
[1765478989518,0.04850183,134.79,134.76,3.18]
[1765478990711,0.04850183,134.79,134.78,1.77764372]
[1765478990921,0.04850183,134.79,134.78,3.1]
[1765478991117,0.04850183,134.79,134.75,3.15573533]
[1765478992107,5.19740676,134.89,134.76,3.1]
[1765478992309,74.55797907,134.87,134.83,1.77864498]
[1765478992514,11.47797907,134.84,134.79,3.1]
[1765478993109,189.0306,134.87,134.8,3.15211854]
[1765478993110,0.05435413,134.83,134.8,3.15211854]
[1765478993310,0.05661998,134.83,134.8,3.15674396]
[1765478994515,0.05661998,134.83,134.8,0.05674396]
[1765478994713,11.47797907,134.81,134.74,3.1]
[1765478994914,74.55797907,134.81,134.74,3.1]
[1765478995221,74.55797907,134.81,134.74,9.7786]
[1765478995822,0.04744203,134.79,134.78,1.78046722]
[1765478996721,0.04744203,134.79,134.76,3.15597282]
[1765478997728,0.04744203,134.79,134.78,1.78029262]
[1765478998722,0.04744203,134.79,134.78,4.88029262]
[1765478998923,0.04744203,134.79,134.78,3.1]
[1765478999632,0.04744203,134.79,134.76,3.15597282]
[1765479006340,0.04744203,134.79,134.77,3.1]
[1765479007338,0.04744203,134.79,134.78,1.78513426]
[1765479007646,0.04744203,134.79,134.76,0.05597282]
[1765479007844,0.04744203,134.79,134.77,1.78576889]
[1765479008535,6.72424203,134.79,134.77,1.78576889]
[1765479009132,0.04744203,134.79,134.77,1.78576889]
[1765479009529,126.0184,134.78,134.68,3.1]
[1765479009735,126.0184,134.78,134.73,1.78796382]
[1765479009736,11.47797907,134.75,134.73,1.78796382]
[1765479009935,63.08,134.74,134.73,1.78796382]
[1765479011039,22.15,134.78,134.72,0.05710488]
[1765479011040,5.19817167,134.81,134.74,3.1]
[1765479011244,63.08,134.79,134.76,1.78674895]
[1765479011742,63.08,134.79,134.77,4.88674895]
[1765479012042,63.13656627,134.79,134.78,1.78674895]
[1765479012347,63.13656627,134.79,134.77,3.15407307]
[1765479012937,0.05656627,134.79,134.78,3.1]
[1765479013247,63.1,134.84,134.78,3.1]
[1765479013440,63.1,134.84,134.82,3.1]
[1765479014252,63.14885186,134.84,134.82,3.14706626]
[1765479016048,6.6713,134.9,134.83,3.16]
[1765479016251,63.08,134.9,134.87,1.78509263]
[1765479016640,69.7513,134.9,134.87,1.78509263]
[1765479017045,63.08,134.9,134.87,1.78509263]
[1765479017247,7.33412327,134.88,134.87,0.04861516]
[1765479019047,7.33412327,134.88,134.8,3.15]
[1765479019253,7.33412327,134.85,134.83,1.78546731]
[1765479019448,63.08,134.84,134.82,1.78546731]
[1765479019753,63.08,134.84,134.76,3.15]
[1765479020145,0.0517376,134.81,134.79,0.05670755]
[1765479021148,0.0517376,134.81,134.79,3.20670755]
[1765479025664,63.08,134.84,134.79,3.20670755]
[1765479026657,0.0566532,134.83,134.79,3.20670755]
[1765479027761,0.0566532,134.83,134.79,9.88310755]
[1765479027962,0.0566532,134.83,134.8,3.15]
[1765479029158,0.0566532,134.83,134.82,1.78583135]
[1765479031272,0.0566532,134.83,134.79,0.05670755]
[1765479031565,0.0566532,134.83,134.81,1.7864723]
[1765479031753,28.8812532,134.83,134.79,0.05670755]
[1765479031957,28.8812532,134.83,134.8,4.93674376]
[1765479031958,0.0566532,134.83,134.8,4.93674376]
[1765479032148,0.0566532,134.83,134.81,1.78674376]
[1765479032352,0.0566532,134.83,134.81,3.15]
[1765479032557,0.0566532,134.83,134.82,1.78610864]
[1765479032866,63.1366532,134.83,134.82,4.93599739]
[1765479033160,63.1366532,134.83,134.82,3.15]
[1765479034372,63.1366532,134.83,134.79,0.05670755]
[1765479034556,63.1366532,134.83,134.82,1.78483784]
[1765479036161,0.0566532,134.83,134.82,3.15]
[1765479036363,0.0566532,134.83,134.79,3.20670755]
[1765479037164,0.0566532,134.83,134.8,3.15]
[1765479037559,7.33412327,134.88,134.8,3.15]
[1765479037760,63.08,134.9,134.86,4.9334528]
[1765479038066,63.08,134.9,134.87,4.9334528]
[1765479038366,63.08,134.9,134.84,3.15]
[1765479038664,69.80443796,134.9,134.88,1.78215427]
[1765479038865,63.13333796,134.9,134.87,3.19793619]
[1765479039062,63.13333796,134.9,134.88,1.78191037]
[1765479039262,63.13333796,134.9,134.89,1.78191037]
[1765479039465,63.13333796,134.9,134.87,0.04793619]
[1765479039662,63.13333796,134.9,134.89,1.78083581]
[1765479040655,63.13333796,134.9,134.88,1.78083581]
[1765479040861,63.13333796,134.9,134.87,3.19793619]
[1765479041058,63.13333796,134.9,134.88,1.78026904]
[1765479043363,69.80443796,134.9,134.88,1.78026904]
[1765479044771,166.90893796,134.9,134.82,3.15]
[1765479044972,7.33412327,134.87,134.85,1.78216689]
[1765479045969,70.46746123,134.9,134.86,1.78216689]
[1765479046171,70.46746123,134.9,134.87,1.78216689]
[1765479046564,6.6719,134.89,134.87,1.78216689]
[1765479046766,70.46746123,134.9,134.86,1.78216689]
[1765479047066,6.6716,134.89,134.86,1.78216689]
[1765479047272,6.6716,134.89,134.85,0.05491921]
[1765479047273,6.6716,134.89,134.87,1.78216689]
[1765479047665,77.13886123,134.9,134.87,1.78216689]
[1765479047860,70.46746123,134.9,134.87,1.78216689]
[1765479048067,63.13333796,134.9,134.89,1.78216689]
[1765479048272,63.13333796,134.9,134.88,3.20636412]
[1765479048570,63.13333796,134.9,134.89,3.15]
[1765479049068,63.13333796,134.9,134.88,0.05636412]
[1765479049268,63.13333796,134.9,134.88,3.18636412]
[1765479050568,63.13333796,134.9,134.88,0.05636412]
[1765479050966,63.13333796,134.9,134.88,3.18636412]
[1765479051772,0.05333796,134.9,134.88,3.18636412]
[1765479052775,63.04,134.92,134.89,3.13]
[1765479052963,7.33412327,134.98,134.89,3.13]
[1765479053172,63.04,134.97,134.93,4.91258259]
[1765479053474,6.6688,134.95,134.89,3.13]
[1765479053676,6.6688,134.95,134.93,1.78215582]
[1765479053977,6.72253747,134.95,134.93,1.78215582]
[1765479054678,6.72253747,134.95,134.94,1.78215582]
[1765479054879,6.72253747,134.95,134.91,3.18383621]
[1765479055078,0.05373747,134.95,134.94,1.78173882]
[1765479055378,0.05373747,134.95,134.91,0.05383621]
[1765479055580,0.05373747,134.95,134.94,1.78263544]
[1765479055779,0.05373747,134.95,134.94,4.91263544]
[1765479055966,0.05373747,134.95,134.94,3.13]
[1765479056473,63.04,134.97,134.94,3.13]
[1765479056679,63.04,134.97,134.96,4.91092021]
[1765479056877,63.04,134.97,134.96,3.13]
[1765479059078,0.04708302,134.98,134.96,3.13]
[1765479059280,227.45441699,135.1,134.97,3.13]
[1765479059281,10.94485141,135.09,134.97,3.13]
[1765479059578,7.33412327,135.03,135.02,1.77515036]
[1765479059785,70.37412327,135.03,134.95,3.13]
[1765479059978,70.37412327,135.03,135.0,1.77594943]
[1765479060173,70.37412327,135.03,135.01,1.77594943]
[1765479060480,77.08700002,135.03,134.95,9.7985]
[1765479060683,77.08700002,135.03,135.0,1.77624106]
[1765479061185,6.6653,135.02,134.94,3.13]
[1765479061382,7.33412327,134.96,134.91,3.13]
[1765479061575,0.04774203,134.95,134.92,0.04817331]
[1765479062383,0.04774203,134.95,134.94,1.77723766]
[1765479062580,0.04774203,134.95,134.92,0.04817331]
[1765479062779,0.04774203,134.95,134.88,3.13]
[1765479062780,7.33412327,134.93,134.88,3.13]
[1765479062983,7.33412327,134.93,134.85,6.6732]
[1765479063485,69.6883,134.96,134.89,1.77867409]
[1765479063689,63.02,134.97,134.93,4.90867409]
[1765479063892,0.05362832,134.96,134.95,1.77867409]
[1765479064088,0.05362832,134.96,134.95,3.13]
[1765479064385,70.35412327,134.98,134.94,0.05040539]
[1765479064586,70.35412327,134.98,134.96,1.77505879]
[1765479064785,63.02,134.98,134.97,1.77505879]
[1765479065179,63.02,134.98,134.97,3.13]
[1765479065987,63.02,134.98,134.94,0.05040539]
[1765479065988,63.02,134.98,134.94,3.18040539]
[1765479066287,7.33412327,134.97,134.96,1.77462185]
[1765479066987,7.33412327,134.97,134.94,0.05040539]
[1765479068084,7.33412327,134.97,134.95,4.90511834]
[1765479068281,63.02,134.98,134.96,1.77511834]
[1765479068483,7.33412327,134.97,134.94,0.05040539]
[1765479068684,7.33412327,134.97,134.96,1.77472353]
[1765479068886,7.33412327,134.97,134.95,1.77472353]
[1765479069788,7.33412327,134.97,134.96,1.77472353]
[1765479069989,7.33412327,134.97,134.94,0.05040539]
[1765479070191,29.48412327,134.97,134.88,3.13]
[1765479070394,7.33412327,134.94,134.88,3.13]
[1765479070697,63.02,134.93,134.88,3.13]
[1765479071086,0.05097406,134.92,134.89,3.18276854]
[1765479072091,0.05097406,134.92,134.89,0.05276854]
[1765479072288,0.05097406,134.92,134.91,1.77763098]
[1765479072492,7.38509733,134.92,134.89,0.05276854]
[1765479073588,7.38509733,134.92,134.81,3.13]
[1765479073788,14.00582327,134.89,134.82,6.6749]
[1765479073994,63.02,134.88,134.81,3.13]
[1765479074501,63.02,134.88,134.86,1.78123383]
[1765479075003,63.06994236,134.88,134.86,1.78123383]
[1765479076296,69.74224236,134.88,134.83,0.05610934]
[1765479076502,7.33412327,134.86,134.83,0.05610934]
[1765479076698,7.33412327,134.86,134.71,62.94]
[1765479076699,103.8353,134.82,134.71,62.94]
[1765479076900,110.5421,134.78,134.68,3.05]
[1765479077207,11.50662917,134.74,134.68,3.05]
[1765479077398,11.50662917,134.76,134.68,3.05]
[1765479077598,63.02,134.75,134.72,1.78595932]
[1765479077994,63.06721383,134.75,134.73,1.78595932]
[1765479078302,63.06721383,134.75,134.72,0.05002107]
[1765479078595,11.50662917,134.74,134.73,1.7856218]
[1765479078794,11.50662917,134.74,134.65,9.8434]
[1765479078995,11.50662917,134.74,134.71,1.78656463]
[1765479079198,115.40272917,134.74,134.65,3.16]
[1765479079398,11.50662917,134.71,134.65,3.16]
[1765479079599,63.04,134.7,134.65,3.16]
[1765479079792,0.05492573,134.69,134.66,3.21695593]
[1765479081408,0.05492573,134.69,134.68,1.78181265]
[1765479081704,0.05492573,134.69,134.66,0.05695593]
[1765479081905,63.06,134.68,134.66,0.05695593]
[1765479082099,63.11492573,134.69,134.66,3.21695593]
[1765479082504,0.05492573,134.69,134.66,3.21695593]
[1765479083207,6.6793,134.74,134.66,3.21695593]
[1765479083398,63.06,134.74,134.7,1.7766389]
[1765479083708,63.06,134.74,134.71,1.7766389]
[1765479083902,63.06,134.74,134.69,3.16]
[1765479084104,63.06,134.74,134.71,1.77592166]
[1765479084305,63.11634945,134.74,134.71,1.83299648]
[1765479084610,63.11634945,134.74,134.71,0.05707482]
[1765479084809,63.11634945,134.74,134.71,1.830413]
[1765479085008,167.01214945,134.74,134.71,0.05707482]
[1765479085402,63.11634945,134.74,134.71,0.05707482]
[1765479086608,0.05634945,134.74,134.71,0.05707482]
[1765479087014,63.08,134.73,134.71,0.05707482]
[1765479087907,103.9156,134.72,134.64,3.16]
[1765479088108,103.9194,134.71,134.67,1.76876795]
[1765479088407,63.1,134.7,134.68,1.76876795]
[1765479088609,63.1,134.7,134.64,3.16]
[1765479088804,63.1,134.7,134.68,1.76762331]
[1765479089014,63.15192765,134.7,134.68,0.0545281]
[1765479089205,69.83312765,134.7,134.68,0.0545281]
[1765479089716,167.07872765,134.7,134.6,3.16]
[1765479089918,167.0268,134.7,134.66,1.76713976]
[1765479090216,103.9355,134.69,134.65,1.76713976]
[1765479090515,103.9355,134.69,134.66,1.76567188]
[1765479090815,103.98895647,134.69,134.66,1.82034079]
[1765479091208,103.98895647,134.69,134.66,0.05466891]
[1765479091401,103.98895647,134.69,134.6,3.16]
[1765479091402,103.9502,134.67,134.6,3.16]
[1765479091604,63.1,134.66,134.64,2.592e-05]
[1765479091805,167.0619,134.66,134.56,3.16]
[1765479092001,6.6849,134.62,134.56,3.16]
[1765479092215,63.1,134.61,134.56,3.16]
[1765479092414,0.05196588,134.6,134.58,3.16]
[1765479093007,6.6867,134.59,134.57,0.05675398]
[1765479093212,104.05836588,134.6,134.51,3.16]
[1765479093407,126.1424,134.62,134.51,3.16]
[1765479093611,103.983,134.63,134.51,3.16]
[1765479093814,63.1,134.62,134.51,107.23]
[1765479094113,0.05363833,134.58,134.55,0.04949532]
[1765479094325,11.50662917,134.64,134.56,3.16]
[1765479094531,63.12,134.63,134.6,1.75995533]
[1765479094816,63.12,134.63,134.62,1.75995533]
[1765479095121,63.12,134.63,134.58,3.16]
[1765479095317,63.12,134.63,134.62,1.75823269]
[1765479095717,63.12,134.63,134.61,1.75823269]
[1765479096812,63.12,134.63,134.59,0.05264544]
[1765479097014,63.12,134.63,134.61,1.75717907]
[1765479097619,69.8047,134.63,134.61,1.75717907]
[1765479098122,63.12,134.63,134.61,1.75717907]
[1765479098922,85.27,134.63,134.61,7.907e-05]
[1765479099116,189.2548,134.63,134.59,0.05264544]
[1765479099316,0.04987449,134.64,134.59,3.21264544]
[1765479099518,63.14,134.63,134.59,3.21264544]
[1765479099924,63.14,134.63,134.61,1.75465201]
[1765479101416,63.14,134.63,134.61,3.16]
[1765479102929,63.14,134.63,134.59,3.21264544]
[1765479103427,0.04987449,134.64,134.59,3.21264544]
[1765479103926,6.73387449,134.64,134.59,3.21264544]
[1765479104127,0.04987449,134.64,134.63,1.75539198]
[1765479104427,0.04987449,134.64,134.62,0.05649345]
[1765479105323,0.04987449,134.64,134.62,3.21649345]
[1765479107030,6.73397449,134.64,134.62,0.05649345]
[1765479107230,0.04987449,134.64,134.62,0.05649345]
[1765479107932,0.04987449,134.64,134.63,1.75907046]
[1765479108225,0.04987449,134.64,134.62,0.05649345]
[1765479108431,6.73427449,134.64,134.62,0.05649345]
[1765479108836,40.39090366,134.64,134.55,3.05]
[1765479109028,40.34102917,134.64,134.6,1.76104088]
[1765479109228,46.33316722,134.64,134.6,1.76104088]
[1765479109424,22.15,134.62,134.59,1.76266314]
[1765479109724,102.80876722,134.61,134.51,3.05]
[1765479109930,0.04827696,134.57,134.55,0.05317759]
[1765479110136,63.16,134.56,134.55,0.05317759]
[1765479110942,63.16,134.56,134.55,3.10317759]
[1765479111241,0.04827696,134.57,134.55,3.10317759]
[1765479111622,0.04827696,134.57,134.55,0.05317759]
[1765479117128,5.99213805,134.56,134.55,0.05317759]
[1765479117341,22.81779756,134.56,134.39,3.05]
[1765479117539,11.50662917,134.5,134.48,1.72403868]
[1765479117746,69.17213805,134.49,134.45,3.05]
[1765479117945,69.17213805,134.49,134.38,104.1663]
[1765479117946,63.18,134.49,134.4,3.05]
[1765479118133,63.18,134.49,134.44,6.89016264]
[1765479118333,0.04741476,134.48,134.45,3.104527]
[1765479120332,0.04741476,134.48,134.33,294.0]
[1765479120537,11.50662917,134.39,134.32,3.05]
[1765479120736,63.18,134.4,134.32,3.05]
[1765479121642,63.18,134.4,134.39,3.05]
[1765479121835,5.36918826,134.43,134.39,3.05]
[1765479122031,0.05278729,134.41,134.4,1.79121226]
[1765479122438,0.05278729,134.41,134.34,3.05]
[1765479122635,16.87581743,134.43,134.4,1.78920625]
[1765479122946,11.56129992,134.43,134.4,1.78920625]
[1765479123242,22.72537695,134.43,134.34,3.05]
[1765479123442,0.0536214,134.4,134.34,3.05]
[1765479123631,0.0536214,134.4,134.29,3.05]
[1765479123833,0.05160787,134.36,134.25,3.05]
[1765479124044,0.05468808,134.32,134.31,1.79076804]
[1765479124246,11.50662917,134.34,134.25,3.05]
[1765479124437,63.2559912,134.33,134.3,1.78719093]
[1765479124640,11.50662917,134.31,134.18,3.05]
[1765479124840,11.50662917,134.24,134.22,1.7888597]
[1765479125153,11.50662917,134.24,134.1,3.05]
[1765479125154,104.3086,134.21,134.1,3.05]
[1765479125450,0.05074547,134.17,134.1,3.05]
[1765479126144,11.55737464,134.17,134.15,1.78534269]
[1765479126345,11.55737464,134.17,134.14,1.78534269]
[1765479126543,11.55737464,134.17,134.1,3.05]
[1765479126737,0.05074547,134.17,134.14,1.77950286]
[1765479127341,0.05074547,134.17,134.09,3.05]
[1765479127546,11.50662917,134.13,134.11,1.77446097]
[1765479127738,63.24,134.13,134.11,1.77446097]
[1765479128258,63.24,134.13,134.05,3.05]
[1765479128454,63.24,134.13,134.1,1.7689741]
[1765479128749,11.50662917,134.11,134.04,3.05]
[1765479129047,11.50662917,134.1,134.04,3.05]
[1765479129255,104.4175,134.07,133.93,107.5706]
[1765479129458,11.50662917,134.03,134.02,7.638e-05]
[1765479129643,11.50662917,134.03,133.94,3.05]
[1765479129945,11.55705624,134.0,133.9,3.05]
[1765479130146,104.4644,134.01,133.86,104.5747]
[1765479130147,104.5112,133.95,133.86,3.05]
[1765479130348,116.03482917,133.93,133.86,3.05]
[1765479130649,11.50662917,133.9,133.79,3.05]
[1765479130850,63.28,133.89,133.8,3.05]
[1765479131152,0.05290559,133.86,133.79,3.05]
[1765479131354,63.3,133.87,133.81,3.05]
[1765479131547,63.3,133.87,133.86,1.75494505]
[1765479131745,63.3,133.87,133.81,3.05]
[1765479131746,63.3,133.87,133.82,3.05]
[1765479132148,63.32,133.92,133.84,3.05]
[1765479132351,63.32,133.92,133.89,1.75282978]
[1765479132671,104.5424,133.91,133.79,3.05]
[1765479132850,11.50662917,133.91,133.8,3.05]
[1765479133048,104.5502,133.9,133.8,3.05]
[1765479133244,11.50662917,133.88,133.8,3.05]
[1765479133441,63.32,133.87,133.85,1.74167496]
[1765479133646,63.32,133.87,133.85,3.05]
[1765479133848,11.50662917,133.95,133.86,3.19]
[1765479134159,167.8633,133.96,133.92,1.73898013]
[1765479134351,11.50662917,133.94,133.86,3.19]
[1765479134550,11.50662917,133.94,133.91,1.73474109]
[1765479134748,11.50662917,134.0,133.92,3.19]
[1765479134960,0.04835838,133.97,133.96,1.73291398]
[1765479135457,0.04835838,133.97,133.95,3.24348347]
[1765479135662,63.36,134.0,133.96,3.19]
[1765479135953,11.50662917,134.08,133.97,3.19]
[1765479136157,63.38,134.07,134.04,1.72710248]
[1765479136660,63.38,134.07,134.06,1.72710248]
[1765479136954,179.35437924,134.07,134.04,0.05569422]
[1765479137161,179.35687924,134.07,134.05,1.72470999]
[1765479137351,283.77827924,134.07,134.05,1.72470999]
[1765479137546,167.84615007,134.07,134.05,1.72396817]
[1765479137747,104.4282,134.06,134.05,1.72387647]
[1765479137945,215.5692,134.06,133.98,3.19]
[1765479138147,208.8704,134.05,134.03,1.72416559]
[1765479138346,104.4432,134.04,134.02,1.72416559]
[1765479138547,208.8864,134.04,134.01,1.72416559]
[1765479138760,7.42534536,134.03,133.94,3.31]
[1765479138956,0.05495675,134.0,133.97,0.05152606]
[1765479139660,0.05495675,134.0,133.97,3.36152606]
[1765479139854,0.05495675,134.0,133.98,5.03303707]
[1765479140053,0.05495675,134.0,133.98,3.31]
[1765479141261,0.05495675,134.0,133.97,0.05152606]
[1765479141462,0.05495675,134.0,133.97,3.36152606]
[1765479141665,0.05495675,134.0,133.97,0.05152606]
[1765479141958,7.48030211,134.0,133.98,1.72040491]
[1765479142345,0.05495675,134.0,133.98,1.72040491]
[1765479142549,0.05495675,134.0,133.98,3.31]
[1765479144457,63.4,134.02,133.98,3.31]
[1765479144958,7.42534536,134.06,133.98,3.31]